bitfinex/quotes_SOLUSD_20220102
["timestamp","ask_amount","ask_price","bid_price","bid_amount"]
[1641114883927,2.0477,175.18,175.06,2.084]
[1641114884725,2.0477,175.18,175.07,8.18]
[1641114884925,0.76,175.18,175.07,0.5]
[1641114885126,0.76,175.18,175.07,0.76]
[1641114885426,8.94,175.2,175.07,0.26]
[1641114885629,8.94,175.2,175.06,10.264]
[1641114889453,8.94,175.2,175.06,2.084]
[1641114889652,8.94,175.2,175.06,10.264]
[1641114889857,8.94,175.2,175.06,2.084]
[1641114890055,8.94,175.2,175.06,10.264]
[1641114890255,0.5,175.2,175.06,10.264]
[1641114890456,0.26,175.2,175.06,10.264]
[1641114890857,6.49262419,175.19,175.06,10.264]
[1641114891058,6.75262419,175.19,175.06,10.264]
[1641114891258,7.25262419,175.19,175.06,10.264]
[1641114891456,0.76,175.19,175.06,10.264]
[1641114891856,3.4494522,175.2,175.06,10.264]
[1641114893458,1.4494522,175.2,175.06,10.264]
[1641114893661,0.9494522,175.2,175.06,10.264]
[1641114893859,1.4494522,175.2,175.06,10.264]
[1641114894867,0.76,175.2,175.06,10.264]
[1641114895064,2.0073,175.23,175.06,10.264]
[1641114895264,1.2473,175.23,175.06,10.264]
[1641114895566,6.4920149,175.22,175.06,10.264]
[1641114895970,7.2520149,175.22,175.06,10.264]
[1641114896864,6.4920149,175.21,175.06,10.264]
[1641114897067,6.7520149,175.21,175.06,10.264]
[1641114897266,7.2520149,175.21,175.06,10.264]
[1641114897466,0.76,175.21,175.06,10.264]
[1641114897968,3.17399368,175.23,175.06,10.264]
[1641114899368,3.43399368,175.23,175.06,10.264]
[1641114899568,3.17399368,175.23,175.06,10.264]
[1641114899768,8.18,175.22,175.06,10.264]
[1641114899967,8.68,175.22,175.06,10.264]
[1641114900369,0.5,175.22,175.06,10.264]
[1641114900769,1.7473,175.23,175.06,10.264]
[1641114900969,2.0073,175.23,175.06,10.264]
[1641114901169,8.18,175.22,175.06,10.264]
[1641114901370,8.68,175.22,175.06,10.264]
[1641114901571,0.76,175.22,175.06,10.264]
[1641114901775,8.94,175.22,175.06,10.264]
[1641114904175,0.76,175.22,175.06,10.264]
[1641114904377,10.1873,175.23,175.06,10.264]
[1641114905977,9.1873,175.23,175.06,10.264]
[1641114906779,8.94,175.23,175.06,10.264]
[1641114908201,8.94,175.23,175.06,10.004]
[1641114909704,8.94,175.23,175.06,10.264]
[1641114909705,6.49248453,175.22,175.06,10.264]
[1641114909903,8.18,175.21,175.06,10.264]
[1641114910103,8.44,175.21,175.06,10.264]
[1641114910304,8.94,175.21,175.06,9.764]
[1641114910504,6.49248453,175.2,175.06,10.264]
[1641114910907,7.25248453,175.2,175.06,10.264]
[1641114911705,6.49248453,175.19,175.06,10.264]
[1641114911905,6.99248453,175.19,175.06,10.264]
[1641114912105,7.25248453,175.19,175.06,10.264]
[1641114912707,0.76,175.19,175.06,10.264]
[1641114912906,0.26,175.19,175.06,10.264]
[1641114913106,8.94,175.21,175.06,10.264]
[1641114914105,6.49314114,175.2,175.06,10.264]
[1641114914306,14.67314114,175.2,175.06,10.264]
[1641114914508,15.43314114,175.2,175.06,10.264]
[1641114915108,6.49314114,175.19,175.06,10.264]
[1641114915509,7.25314114,175.19,175.06,10.264]
[1641114915714,1.62327042,175.15,175.06,10.264]
[1641114916911,1.62327042,175.17,175.06,10.264]
[1641114917312,1.62327042,175.16,175.06,10.264]
[1641114919513,2.12327042,175.17,175.06,10.264]
[1641114919713,1.62327042,175.17,175.06,10.264]
[1641114919915,2.12327042,175.17,175.06,10.264]
[1641114920117,1.62327042,175.17,175.06,10.264]
[1641114921920,1.62327042,175.17,175.06,17.062]
[1641114923624,1.62327042,175.18,175.06,17.062]
[1641114924221,2.12327042,175.18,175.06,17.062]
[1641114927625,2.12327042,175.18,175.06,10.264]
[1641114927826,2.38327042,175.18,175.06,2.084]
[1641114928427,1.62327042,175.16,175.06,2.084]
[1641114928829,2.12327042,175.16,175.06,2.084]
[1641114931332,2.12327042,175.16,175.06,1.584]
[1641114933034,2.12327042,175.16,175.06,9.764]
[1641114933233,2.12327042,175.16,175.06,1.584]
[1641114935461,2.12327042,175.16,175.06,10.264]
[1641114944671,0.5,175.16,175.06,10.264]
[1641114944871,2.12327042,175.17,175.06,10.264]
[1641114945070,2.38327042,175.17,175.06,10.264]
[1641114946471,2.38327042,175.17,175.06,2.084]
[1641114948373,2.38327042,175.17,175.07,8.18]
[1641114948573,2.38327042,175.17,175.07,8.44]
[1641114949275,2.38327042,175.17,175.08,1.2167]
[1641114949476,2.38327042,175.17,175.08,1.4767]
[1641114949875,1.62327042,175.16,175.08,1.4767]
[1641114950276,2.12327042,175.16,175.08,1.4767]
[1641114951779,0.5,175.16,175.08,1.4767]
[1641114951978,2.38327042,175.17,175.08,1.4767]
[1641114953283,2.12327042,175.17,175.08,1.4767]
[1641114954780,2.12327042,175.17,175.03,83.0789]
[1641114954981,2.38327042,175.17,175.03,83.5789]
[1641114955381,1.62327042,175.15,175.03,83.0789]
[1641114955581,1.88327042,175.15,175.03,84.309]
[1641114955786,2.38327042,175.15,175.03,84.309]
[1641114956382,1.62327042,175.13,175.03,84.309]
[1641114956581,1.88327042,175.13,175.03,84.309]
[1641114956782,2.38327042,175.13,175.03,84.569]
[1641114957182,2.38327042,175.13,175.03,76.389]
[1641114957584,1.62327042,175.12,175.03,76.389]
[1641114957985,2.12327042,175.12,175.03,76.389]
[1641114959286,2.38327042,175.12,175.03,76.389]
[1641114961090,1.62327042,175.11,175.03,76.389]
[1641114961492,2.12327042,175.11,175.03,76.389]
[1641114961791,0.5,175.11,175.03,76.389]
[1641114962191,2.38327042,175.12,175.03,76.389]
[1641114962389,1.62327042,175.11,175.03,76.389]
[1641114962790,2.12327042,175.11,175.03,76.389]
[1641114963790,2.12327042,175.11,175.03,1.4901]
[1641114967312,2.12327042,175.11,175.03,1.9901]
[1641114967516,2.12327042,175.11,175.03,1.4901]
[1641114967714,2.12327042,175.11,175.03,0.26]
[1641114968115,2.12327042,175.11,175.02,73.8887]
[1641114968519,1.62327042,175.1,175.02,74.3887]
[1641114968715,1.62327042,175.1,175.02,73.8887]
[1641114968916,2.12327042,175.1,175.02,73.8887]
[1641114969116,1.62327042,175.1,175.02,73.8887]
[1641114969518,1.62327042,175.11,175.02,73.8887]
[1641114969717,1.62327042,175.11,175.03,1.2567]
[1641114970017,2.12327042,175.11,175.03,2.0167]
[1641114970218,0.5,175.11,175.03,2.0167]
[1641114970419,8.68,175.15,175.03,2.0167]
[1641114970618,8.94,175.15,175.03,2.0167]
[1641114972220,8.94,175.15,175.03,1.5167]
[1641114972921,8.94,175.15,175.03,2.0167]
[1641114973121,8.94,175.15,175.03,1.5167]
[1641114973823,8.94,175.15,175.03,2.0167]
[1641114974023,8.94,175.15,175.03,1.5167]
[1641114974223,10.56327042,175.15,175.03,1.5167]
[1641114975726,10.56327042,175.15,175.03,2.0167]
[1641114977127,10.56327042,175.15,175.03,1.5167]
[1641114977727,8.94,175.15,175.03,1.5167]
[1641114977929,8.94,175.15,175.03,2.0167]
[1641114978832,0.5,175.15,175.03,10.1967]
[1641114979233,2.12327042,175.16,175.03,10.1967]
[1641114979533,2.12327042,175.16,175.03,9.6967]
[1641114980032,2.38327042,175.16,175.03,10.1967]
[1641114980732,2.38327042,175.16,175.03,9.9367]
[1641114981133,3.8099641,175.16,175.03,9.4367]
[1641114981333,1.62327042,175.12,175.03,9.4367]
[1641114981532,2.38327042,175.12,175.03,9.4367]
[1641114981734,2.38327042,175.12,175.03,9.9367]
[1641114982036,2.38327042,175.12,175.03,10.1967]
[1641114983136,2.38327042,175.12,175.03,9.6967]
[1641114983839,2.38327042,175.12,175.03,10.1967]
[1641114986242,2.38327042,175.12,175.03,2.0167]
[1641114987243,2.38327042,175.12,175.03,1.5167]
[1641114987644,2.38327042,175.12,175.03,2.0167]
[1641114989545,2.38327042,175.12,175.03,10.1967]
[1641114989753,2.38327042,175.12,175.03,2.0167]
[1641114990545,2.38327042,175.12,175.03,10.1967]
[1641114990745,2.38327042,175.12,175.03,2.0167]
[1641114991548,2.38327042,175.12,175.03,9.6967]
[1641114991948,2.38327042,175.12,175.03,1.5167]
[1641114992148,1.62327042,175.11,175.03,2.0167]
[1641114992348,2.12327042,175.11,175.03,2.0167]
[1641114992548,2.38327042,175.11,175.03,1.5167]
[1641114992950,2.38327042,175.11,175.03,2.0167]
[1641114993349,2.38327042,175.11,175.03,1.5167]
[1641114993548,2.38327042,175.11,175.03,9.6967]
[1641114993849,2.38327042,175.11,175.03,2.0167]
[1641114994047,2.38327042,175.11,175.03,1.5167]
[1641114994451,1.62327042,175.1,175.03,1.2567]
[1641114994852,2.38327042,175.1,175.03,1.2567]
[1641114995151,1.62327042,175.09,175.03,1.2567]
[1641114995351,2.12327042,175.09,175.03,1.2567]
[1641114995550,2.38327042,175.09,175.0,1.26]
[1641114995751,2.38327042,175.09,174.96,79.8809]
[1641114995951,2.38327042,175.09,174.97,17.62483862]
[1641114996351,2.38327042,175.09,174.97,18.12483862]
[1641114996553,1.62327042,175.07,174.97,18.12483862]
[1641114996954,2.38327042,175.07,174.97,18.12483862]
[1641114997154,2.38327042,175.07,174.98,1.2845]
[1641114997355,2.38327042,175.07,174.98,1.7845]
[1641114997556,2.38327042,175.07,174.98,1.2845]
[1641114997957,2.12327042,175.07,174.98,1.7845]
[1641114998160,2.12327042,175.07,174.98,2.0445]
[1641114998357,2.12327042,175.07,174.98,1.5445]
[1641114998958,0.5,175.07,174.98,2.0445]
[1641114999359,3.62387042,175.08,174.98,2.0445]
[1641114999761,3.62387042,175.08,174.98,1.5445]
[1641115000257,3.62387042,175.08,174.98,1.2845]
[1641115000457,3.62387042,175.08,174.98,1.7845]
[1641115000657,2.0006,175.08,174.98,1.2845]
[1641115001277,2.0006,175.08,174.98,1.7845]
[1641115001479,2.0006,175.08,174.98,1.5445]
[1641115002080,2.0006,175.08,174.98,2.0445]
[1641115002480,2.0006,175.08,174.98,1.5445]
[1641115002879,2.0006,175.08,174.98,2.0445]
[1641115003281,1.7406,175.08,174.98,2.0445]
[1641115004481,2.0006,175.08,174.98,2.0445]
[1641115006685,2.0006,175.08,174.98,1.5445]
[1641115006885,2.0006,175.08,174.98,2.0445]
[1641115007289,2.0006,175.08,174.98,1.5445]
[1641115007688,2.0006,175.08,174.98,2.0445]
[1641115013293,2.0006,175.08,174.98,10.2245]
[1641115013493,2.38327042,175.08,174.98,10.2245]
[1641115013694,2.38327042,175.08,174.98,9.7245]
[1641115014293,2.38327042,175.08,174.98,10.2245]
[1641115014492,2.38327042,175.08,174.98,1.5445]
[1641115015297,2.38327042,175.08,174.98,2.0445]
[1641115015595,2.38327042,175.08,174.98,1.5445]
[1641115015794,2.38327042,175.08,174.98,2.0445]
[1641115015993,2.38327042,175.08,174.98,1.5445]
[1641115016594,2.38327042,175.08,174.98,2.0445]
[1641115019196,2.38327042,175.08,174.98,1.5445]
[1641115019798,2.38327042,175.08,174.98,2.0445]
[1641115020899,2.38327042,175.08,174.98,1.5445]
[1641115021404,2.38327042,175.08,174.98,2.0445]
[1641115026416,2.12327042,175.08,174.99,8.18]
[1641115026618,1.62327042,175.08,174.99,16.005]
[1641115027226,1.62327042,175.1,174.99,16.005]
[1641115028029,1.62327042,175.1,175.0,1.2355]
[1641115028430,1.62327042,175.09,175.0,1.4955]
[1641115028832,2.12327042,175.09,175.0,1.4955]
[1641115031634,2.38327042,175.09,175.0,1.4955]
[1641115031836,1.62327042,175.08,175.0,1.4955]
[1641115032033,1.88327042,175.08,175.0,1.4955]
[1641115032234,2.38327042,175.08,175.0,1.4955]
[1641115032734,2.12327042,175.08,175.0,1.4955]
[1641115032936,1.62327042,175.07,175.0,1.4955]
[1641115033337,0.5,175.07,175.0,1.4955]
[1641115033937,1.62327042,175.07,175.0,1.4955]
[1641115034433,2.12327042,175.07,175.0,1.4955]
[1641115038238,0.5,175.07,175.0,1.4955]
[1641115038438,2.12327042,175.08,175.0,1.4955]
[1641115038637,1.62327042,175.07,175.0,1.4955]
[1641115038837,2.12327042,175.07,175.0,1.4955]
[1641115040341,0.5,175.07,175.0,1.4955]
[1641115040643,1.88327042,175.08,175.0,1.4955]
[1641115040841,2.38327042,175.08,175.0,1.4955]
[1641115042742,2.38327042,175.08,175.0,1.2355]
[1641115044242,2.38327042,175.08,175.0,1.4955]
[1641115045046,1.62327042,175.07,175.0,1.4955]
[1641115045443,2.12327042,175.07,175.0,1.4955]
[1641115045648,0.5,175.07,175.0,1.4955]
[1641115045844,2.38327042,175.08,175.0,1.4955]
[1641115046847,1.62327042,175.07,175.0,1.4955]
[1641115047045,1.88327042,175.07,175.0,1.4955]
[1641115047247,2.38327042,175.07,175.0,1.4955]
[1641115056058,1.88327042,175.07,175.0,1.4955]
[1641115059658,3.14842266,175.11,175.0,1.4955]
[1641115059859,11.32842266,175.11,175.0,1.4955]
[1641115060162,3.14842266,175.11,175.0,1.4955]
[1641115060362,11.32842266,175.12,175.0,1.4955]
[1641115061188,11.82842266,175.12,175.0,1.4955]
[1641115061387,12.08842266,175.12,175.0,1.4955]
[1641115062389,9.64467321,175.11,175.0,1.4955]
[1641115062589,9.90467321,175.11,175.0,1.4955]
[1641115062792,10.40467321,175.11,175.0,1.4955]
[1641115062990,3.90842266,175.11,175.0,1.4955]
[1641115063590,8.18,175.1,175.0,1.4955]
[1641115063989,8.94,175.1,175.0,1.4955]
[1641115065189,0.5,175.1,175.0,1.4955]
[1641115065389,3.64842266,175.11,175.0,1.4955]
[1641115065790,8.68,175.11,175.0,1.4955]
[1641115065991,0.5,175.11,175.0,1.4955]
[1641115066394,3.14842266,175.11,175.0,1.4955]
[1641115066589,3.90842266,175.11,175.0,1.4955]
[1641115067289,10.40473285,175.11,175.0,1.4955]
[1641115067688,3.90842266,175.11,175.0,1.4955]
[1641115069393,8.18,175.1,175.0,1.4955]
[1641115069694,3.64842266,175.11,175.0,1.4955]
[1641115070096,11.82842266,175.11,175.0,1.4955]
[1641115070295,8.68,175.11,175.0,1.4955]
[1641115070894,8.94,175.11,175.0,1.4955]
[1641115071196,12.08842266,175.11,175.0,1.4955]
[1641115071795,8.94,175.11,175.0,1.4955]
[1641115071994,8.68,175.11,175.0,1.4955]
[1641115072197,0.5,175.11,175.0,1.4955]
[1641115072495,3.90842266,175.12,175.0,1.4955]
[1641115072894,8.18,175.11,175.0,1.4955]
[1641115073395,8.68,175.11,175.0,1.4955]
[1641115073596,0.5,175.11,175.0,9.6755]
[1641115073796,0.5,175.11,175.0,1.4955]
[1641115073997,0.76,175.12,175.0,1.4955]
[1641115074395,0.26,175.12,175.0,1.4955]
[1641115074595,12.08842266,175.13,175.0,1.4955]
[1641115075198,6.49564531,175.12,175.0,9.6755]
[1641115075495,7.25564531,175.12,175.0,1.4955]
[1641115075696,7.25564531,175.12,175.0,9.6755]
[1641115076707,0.76,175.12,175.0,1.4955]
[1641115077007,3.90842266,175.13,175.0,1.4955]
[1641115077605,6.49557862,175.12,175.0,1.4955]
[1641115078009,7.25557862,175.12,175.0,1.4955]
[1641115078206,0.76,175.12,175.0,1.4955]
[1641115078410,0.5,175.12,175.0,1.9955]
[1641115078610,1.8392,175.14,175.0,1.9955]
[1641115078807,0.5,175.13,175.0,1.9955]
[1641115079007,1.8392,175.14,175.0,1.9955]
[1641115080011,2.0992,175.14,175.0,1.9955]
[1641115080212,10.2792,175.14,175.0,1.9955]
[1641115080415,10.2792,175.14,175.01,8.18]
[1641115080612,10.2792,175.14,175.01,8.44]
[1641115080813,10.2792,175.14,175.01,8.94]
[1641115081417,10.2792,175.14,175.02,1.2884]
[1641115081613,10.2792,175.14,175.02,1.5484]
[1641115089845,13.42762266,175.14,175.02,1.5484]
[1641115092748,13.42762266,175.14,175.02,2.0484]
[1641115092949,12.08842266,175.14,175.02,2.0484]
[1641115093148,3.90842266,175.14,175.02,10.2284]
[1641115093348,3.90842266,175.14,175.02,11.65509368]
[1641115093549,3.90842266,175.14,175.02,10.2284]
[1641115094149,0.76,175.14,175.02,10.2284]
[1641115094349,0.26,175.14,175.02,10.2284]
[1641115094549,3.90842266,175.15,175.02,10.2284]
[1641115095554,0.76,175.15,175.02,10.2284]
[1641115096051,3.14842266,175.16,175.02,10.2284]
[1641115096052,3.90842266,175.16,175.02,10.2284]
[1641115096853,6.49434273,175.15,175.02,10.2284]
[1641115097052,6.75434273,175.15,175.02,10.2284]
[1641115097255,7.25434273,175.15,175.02,10.2284]
[1641115098156,0.76,175.15,175.02,10.2284]
[1641115098357,0.26,175.15,175.02,10.2284]
[1641115098555,3.90842266,175.16,175.02,10.2284]
[1641115099359,6.49428227,175.15,175.02,10.2284]
[1641115099559,6.75428227,175.15,175.02,10.2284]
[1641115099758,0.76,175.15,175.02,10.2284]
[1641115100159,0.5,175.15,175.02,10.2284]
[1641115100360,90.25292266,175.18,175.02,10.2284]
[1641115100962,6.49424558,175.17,175.02,10.2284]
[1641115101364,7.25424558,175.17,175.02,10.2284]
[1641115101563,0.76,175.17,175.02,10.2284]
[1641115101862,0.26,175.17,175.02,10.2284]
[1641115102062,90.25292266,175.18,175.02,10.2284]
[1641115102363,11.82842266,175.18,175.02,15.8384]
[1641115102569,3.64842266,175.18,175.03,1.42669368]
[1641115102766,3.14842266,175.18,175.04,8.18]
[1641115102965,3.64842266,175.18,175.05,2.85582397]
[1641115103164,0.5,175.18,175.06,8.18]
[1641115103366,3.64842266,175.19,175.07,1.3079]
[1641115103566,3.64842266,175.19,175.07,9.7479]
[1641115103765,3.64842266,175.19,175.07,10.2479]
[1641115103967,0.76,175.19,175.07,10.2479]
[1641115104368,5.24342266,175.21,175.07,10.2479]
[1641115105171,5.24342266,175.21,175.07,9.7479]
[1641115105368,6.49301253,175.2,175.07,9.7479]
[1641115105566,6.75301253,175.2,175.07,9.7479]
[1641115105770,7.25301253,175.2,175.07,9.7479]
[1641115106186,7.25301253,175.2,175.07,10.2479]
[1641115106786,0.76,175.2,175.07,10.2479]
[1641115106988,3.64842266,175.21,175.07,10.2479]
[1641115107188,3.64842266,175.21,175.07,17.27759368]
[1641115108587,3.14842266,175.22,175.07,17.27759368]
[1641115108787,3.14842266,175.22,175.08,78.4952]
[1641115108988,3.64842266,175.22,175.09,8.18]
[1641115109189,0.5,175.22,175.09,83.0883]
[1641115109391,3.64842266,175.23,175.09,83.8483]
[1641115109789,3.90842266,175.23,175.09,83.8483]
[1641115110395,3.64842266,175.23,175.09,83.8483]
[1641115110591,3.64842266,175.23,175.1,1.2697]
[1641115110792,3.64842266,175.23,175.1,9.4497]
[1641115110991,3.64842266,175.23,175.1,10.2097]
[1641115111191,9.64025557,175.22,175.1,10.2097]
[1641115111395,10.14025557,175.22,175.1,10.2097]
[1641115111592,9.64025557,175.22,175.1,10.2097]
[1641115111795,9.64025557,175.22,175.1,11.63639368]
[1641115112394,9.64025557,175.27,175.13,15.58905573]
[1641115112693,9.64025557,175.27,175.14,9.60669368]
[1641115112899,9.64025557,175.27,175.14,10.10669368]
[1641115113094,9.64025557,175.27,175.15,2.75839368]
[1641115113297,9.64025557,175.27,175.16,8.18]
[1641115113503,1.3296,175.33,175.16,8.18]
[1641115113504,3.14842266,175.3,175.16,8.44]
[1641115113702,3.14842266,175.3,175.17,1.2348]
[1641115113902,3.14842266,175.3,175.18,8.18]
[1641115114102,3.14842266,175.3,175.18,8.44]
[1641115114304,9.63719316,175.3,175.18,8.94]
[1641115114703,9.63719316,175.3,175.19,1.3428]
[1641115114904,9.63719316,175.3,175.19,1.8428]
[1641115115106,9.63719316,175.3,175.19,2.1028]
[1641115115306,3.14842266,175.31,175.2,2.85582397]
[1641115115508,3.14842266,175.31,175.2,3.11582397]
[1641115115705,3.64842266,175.31,175.2,3.61582397]
[1641115115907,3.64842266,175.31,175.2,0.76]
[1641115116105,3.90842266,175.31,175.2,0.76]
[1641115116306,6.4887705,175.3,175.18,8.94]
[1641115116606,6.7487705,175.3,175.19,1.2855]
[1641115117006,9.63719316,175.3,175.19,2.0455]
[1641115117505,9.89719316,175.3,175.19,2.0455]
[1641115117706,9.63719316,175.3,175.19,2.0455]
[1641115118207,9.63719316,175.3,175.19,1.2855]
[1641115118208,11.06388684,175.3,175.19,1.2855]
[1641115118407,1.92669368,175.3,175.19,1.2855]
[1641115118907,3.14842266,175.28,175.19,1.2855]
[1641115119406,3.14842266,175.28,175.19,1.7855]
[1641115119606,3.14842266,175.28,175.19,1.5455]
[1641115119810,3.14842266,175.28,175.19,2.0455]
[1641115120009,9.63806514,175.29,175.19,2.0455]
[1641115120208,10.13806514,175.29,175.19,2.0455]
[1641115120412,10.39806514,175.29,175.19,2.0455]
[1641115120809,10.39806514,175.29,175.18,8.18]
[1641115121009,9.60669368,175.28,175.16,1.2653]
[1641115121208,9.60669368,175.28,175.14,76.4811]
[1641115121411,1.42669368,175.27,175.14,76.4811]
[1641115121610,8.18,175.26,175.14,76.4811]
[1641115121810,3.14842266,175.24,175.14,76.4811]
[1641115122010,3.40842266,175.24,175.12,14.24304255]
[1641115122211,5.33511634,175.24,175.12,14.24304255]
[1641115122412,5.33511634,175.24,175.12,14.74304255]
[1641115122612,5.33511634,175.24,175.12,15.00304255]
[1641115123616,2.18669368,175.24,175.12,15.00304255]
[1641115124415,2.18669368,175.24,175.12,14.50304255]
[1641115129920,6.49134055,175.23,175.12,15.00304255]
[1641115130120,6.75134055,175.23,175.12,15.00304255]
[1641115130420,0.76,175.23,175.12,15.00304255]
[1641115130622,0.5,175.23,175.12,15.00304255]
[1641115131021,3.90842266,175.24,175.12,15.00304255]
[1641115131224,0.76,175.24,175.12,15.00304255]
[1641115131424,0.26,175.24,175.12,15.00304255]
[1641115131621,3.90842266,175.25,175.12,15.00304255]
[1641115131822,12.08842266,175.25,175.12,15.00304255]
[1641115132323,12.08842266,175.25,175.13,1.3346]
[1641115132522,12.08842266,175.25,175.13,1.5946]
[1641115132722,12.08842266,175.25,175.13,2.0946]
[1641115134024,11.82842266,175.25,175.13,2.0946]
[1641115135024,11.82842266,175.25,175.13,1.5946]
[1641115135526,9.63959359,175.24,175.13,2.0946]
[1641115135726,9.63959359,175.24,175.13,1.8346]
[1641115135927,10.13959359,175.24,175.13,1.8346]
[1641115136932,6.49117093,175.23,175.13,1.3346]
[1641115137326,7.25117093,175.23,175.13,1.3346]
[1641115138027,7.25117093,175.23,175.13,1.5946]
[1641115138229,0.5,175.23,175.13,1.5946]
[1641115138430,3.14842266,175.24,175.13,2.0946]
[1641115138629,4.57511634,175.26,175.13,2.0946]
[1641115138829,5.07511634,175.26,175.13,2.0946]
[1641115139230,5.07511634,175.26,175.13,1.5946]
[1641115139431,5.33511634,175.26,175.13,2.0946]
[1641115139630,9.63928943,175.25,175.13,2.0946]
[1641115139852,10.13928943,175.25,175.13,2.0946]
[1641115140053,10.39928943,175.25,175.13,2.0946]
[1641115140254,3.14842266,175.24,175.13,2.0946]
[1641115140455,3.64842266,175.24,175.13,2.0946]
[1641115140656,3.90842266,175.24,175.13,2.0946]
[1641115140855,10.39928943,175.24,175.13,1.5946]
[1641115141058,10.39928943,175.24,175.13,2.0946]
[1641115141457,6.49086677,175.23,175.13,2.0946]
[1641115141956,7.25086677,175.23,175.13,2.0946]
[1641115142356,3.14842266,175.25,175.13,2.0946]
[1641115142557,0.5,175.24,175.13,2.0946]
[1641115143158,3.64842266,175.25,175.13,2.0946]
[1641115143562,3.90842266,175.25,175.13,2.0946]
[1641115143857,3.64842266,175.25,175.13,2.0946]
[1641115144058,0.5,175.25,175.13,2.0946]
[1641115144461,3.64842266,175.26,175.13,2.0946]
[1641115145058,3.90842266,175.26,175.13,2.0946]
[1641115145359,9.63902691,175.25,175.13,2.0946]
[1641115145559,9.89902691,175.25,175.13,2.0946]
[1641115145760,6.99060425,175.25,175.13,2.0946]
[1641115146560,0.5,175.25,175.13,2.0946]
[1641115146759,3.90842266,175.26,175.13,2.0946]
[1641115147560,3.40842266,175.26,175.13,10.2746]
[1641115148461,0.26,175.26,175.13,10.2746]
[1641115148862,3.90842266,175.27,175.13,10.2746]
[1641115149062,0.76,175.27,175.13,10.2746]
[1641115149462,3.90842266,175.28,175.14,1.42669368]
[1641115149862,3.90842266,175.28,175.14,2.18669368]
[1641115150063,0.76,175.28,175.14,2.18669368]
[1641115150464,8.94,175.29,175.15,1.2688]
[1641115150867,8.94,175.29,175.15,2.0288]
[1641115151966,8.94,175.29,175.15,3.45549368]
[1641115152167,8.94,175.29,175.15,2.0288]
[1641115153872,9.63796587,175.28,175.15,2.0288]
[1641115154069,9.89796587,175.28,175.15,2.0288]
[1641115154271,10.39796587,175.28,175.15,2.0288]
[1641115154670,0.76,175.28,175.15,2.0288]
[1641115154870,0.26,175.28,175.15,2.0288]
[1641115155070,12.08842266,175.29,175.15,2.0288]
[1641115155271,3.14842266,175.28,175.15,2.0288]
[1641115155471,3.90842266,175.28,175.15,2.0288]
[1641115155671,10.39823629,175.28,175.15,2.0288]
[1641115156873,0.76,175.28,175.15,2.0288]
[1641115157074,12.08842266,175.29,175.15,2.0288]
[1641115157875,11.82842266,175.29,175.15,2.0288]
[1641115158074,8.68,175.29,175.15,2.0288]
[1641115158277,8.18,175.29,175.15,2.0288]
[1641115158501,0.5,175.29,175.16,8.18]
[1641115158677,3.14842266,175.3,175.16,8.18]
[1641115158879,3.64842266,175.3,175.17,1.42669368]
[1641115159180,3.64842266,175.3,175.18,4.72075903]
[1641115159181,3.14842266,175.3,175.18,4.72075903]
[1641115159379,3.14842266,175.3,175.18,5.22075903]
[1641115159578,3.14842266,175.31,175.18,5.48075903]
[1641115159779,3.14842266,175.31,175.19,1.2923]
[1641115159979,10.13699193,175.31,175.19,2.0523]
[1641115160583,3.64842266,175.31,175.19,2.0523]
[1641115161182,8.18,175.32,175.19,2.0523]
[1641115161387,1.3112,175.33,175.19,10.2323]
[1641115166187,1.3112,175.33,175.19,9.9723]
[1641115166389,2.0712,175.33,175.19,9.9723]
[1641115166991,2.0712,175.33,175.19,9.4723]
[1641115167791,1.42669368,175.32,175.19,9.4723]
[1641115167992,2.18669368,175.32,175.19,9.4723]
[1641115168194,0.76,175.32,175.19,9.4723]